[Event "25th Abu Dhabi Master 2018"]
[Site "Abu Dhabi"]
[Date "2018.08.08"]
[Round "2"]
[White "Kigigha, Bomo"]
[Black "Michelle Catherina, P."]
[Result "1-0"]
[ECO "A13"]
[WhiteElo "2317"]
[BlackElo "2153"]
[Annotator "NA"]
[PlyCount "127"]
[EventDate "2018.08.05"]
[EventType "swiss"]
[EventCountry "UAE"]
[SourceTitle "playchess.com"]
[Source "ChessBase"]
[SourceQuality "1"]
[TimeControl "5400+30"]

1. c4 Nf6 {[%emt 0:03:28]} 2. g3 {[%emt 0:00:00]} e6 {[%emt 0:00:55]} 3. Nf3 {[%emt 0:00:00]} d5 {[%emt 0:00:09]} 4. Bg2 {[%emt 0:00:00]} dxc4 {[%emt 0:00:12]} 5. Na3 {[%emt 0:02:15]} Bxa3 {[%emt 0:03:41]} 6. Qa4+ {[%emt 0:00:28]} b5 {[%emt 0:11:06]} 7. Qxa3 {[%emt 0:00:06]} Bb7 {[%emt 0:01:04]} 8. b3 {[%emt 0:06:56]} cxb3 {[%emt 0:03:39]} 9. Qxb3 {[%emt 0:00:08]} a6 {[%emt 0:07:36]} 10. a4 {[%emt 0:09:32]} Bd5 {[%emt 0:06:36]} 11. Qb1 {[%emt 0:00:19]} Nbd7 {[%emt 0:07:39]} 12. O-O {[%emt 0:08:51]} Rb8 {[%emt 0:03:49]} 13. axb5 {[%emt 0:04:38]} axb5 {[%emt 0:01:30]} 14. d3 {[%emt 0:00:05]} O-O {[%emt 0:06:22]} 15. e4 {[%emt 0:01:41]} Ba8 {[%emt 0:03:15]} 16. Ra7 {[%emt 0:08:55]} Re8 {[%emt 0:06:48]} 17. Bf4 {[%emt 0:09:48]} e5 {[%emt 0:01:29]} 18. Be3 {[%emt 0:00:06]} c5 {[%emt 0:03:37]} 19. Qb3 {[%emt 0:02:09]} Qb6 {[%emt 0:13:18]} 20. Rfa1 {[%emt 0:05:15]} Bb7 {[%emt 0:07:02]} 21. Bh3 {[%emt 0:09:33]} h6 {[%emt 0:00:54]} 22. R1a5 {[%emt 0:02:39]} Bc8 {[%emt 0:00:50]} 23. Nh4 {[%emt 0:02:20]} Qc6 {[%emt 0:01:31]} 24. Nf5 {[%emt 0:03:58]} c4 {[%emt 0:03:14]} 25. Qb4 {[%emt 0:01:55]} cxd3 {[%emt 0:01:07]} 26. Ne7+ {[%emt 0:03:54]} Rxe7 {[%emt 0:00:04]} 27. Qxe7 {[%emt 0:00:02]} Bb7 {[%emt 0:01:05]} 28. Qb4 {[%emt 0:05:58]} Bc8 {[%emt 0:01:23]} 29. Ra1 {[%emt 0:00:18]} Nf8 {[%emt 0:00:34]} 30. Rc1 {[%emt 0:03:11]} Qe8 {[%emt 0:00:30]} 31. Re7 {[%emt 0:00:10]} Qd8 {[%emt 0:00:30]} 32. Bxc8 {[%emt 0:00:19]} Rxc8 {[%emt 0:00:25]} 33. Rxc8 {[%emt 0:00:12]} Qxc8 {[%emt 0:00:01]} 34. Rxe5 {[%emt 0:01:00]} Qc4 {[%emt 0:01:03]} 35. Rxb5 {[%emt 0:03:52]} Qxe4 {[%emt 0:00:17]} 36. Qxe4 {[%emt 0:00:34]} Nxe4 {[%emt 0:00:02]} 37. Rd5 {[%emt 0:00:10]} d2 {[%emt 0:01:08]} 38. f3 {[%emt 0:01:20]} Nf6 {[%emt 0:00:32]} 39. Rxd2 {[%emt 0:00:09]} Ne6 {[%emt 0:00:10]} 40. Bd4 {[%emt 0:01:48]} Nxd4 {[%emt 0:00:51]} 41. Rxd4 {[%emt 0:00:02]} g6 {[%emt 0:00:24]} 42. Rd8+ {[%emt 0:00:50]} Kg7 {[%emt 0:00:05]} 43. g4 {[%emt 0:00:25]} Nh7 {[%emt 0:00:58]} 44. Kf2 {[%emt 0:02:25]} Ng5 {[%emt 0:00:14]} 45. Ra8 {[%emt 0:00:16]} Kf6 {[%emt 0:00:42]} 46. Kg3 {[%emt 0:00:25]} Ne6 {[%emt 0:00:25]} 47. f4 {[%emt 0:00:29]} Nd4 {[%emt 0:00:33]} 48. Ra6+ {[%emt 0:00:23]} Ne6 {[%emt 0:00:36]} 49. h4 {[%emt 0:00:49]} Kg7 {[%emt 0:00:33]} 50. f5 {[%emt 0:01:11]} gxf5 {[%emt 0:00:21]} 51. gxf5 {[%emt 0:00:07]} Nc5 {[%emt 0:00:19]} 52. Rc6 {[%emt 0:00:49]} Nd7 {[%emt 0:00:44]} 53. Kf4 {[%emt 0:01:03]} Nf6 {[%emt 0:00:30]} 54. Ra6 {[%emt 0:00:40]} Nd7 {[%emt 0:00:29]} 55. Rc6 {[%emt 0:01:13]} Nf6 {[%emt 0:00:29]} 56. Rc1 {[%emt 0:00:53]} Nd7 {[%emt 0:00:29]} 57. Rd1 {[%emt 0:00:05]} Nb6 {[%emt 0:00:39]} 58. Rd4 {[%emt 0:01:09]} Nc8 {[%emt 0:00:31]} 59. Ke5 {[%emt 0:00:09]} h5 {[%emt 0:00:27]} 60. Rb4 {[%emt 0:00:42]} Kh7 {[%emt 0:00:34]} 61. Rb8 {[%emt 0:00:48]} Ne7 {[%emt 0:00:29]} 62. Kf6 {[%emt 0:00:40]} Nd5+ {[%emt 0:00:18]} 63. Kxf7 {[%emt 0:00:21]} Ne3 {[%emt 0:00:06]} 64. Kf6 {[%emt 0:00:15]} 1-0

[Event "25th Abu Dhabi Master 2018"]
[Site "Abu Dhabi"]
[Date "2018.08.08"]
[Round "2"]
[White "Hamidi, Amir Mohammad"]
[Black "Moayed, Obied"]
[Result "1-0"]
[ECO "D56"]
[WhiteElo "2299"]
[BlackElo "2146"]
[Annotator "NA"]
[PlyCount "131"]
[EventDate "2018.08.05"]
[EventType "swiss"]
[EventCountry "UAE"]
[SourceTitle "playchess.com"]
[Source "ChessBase"]
[SourceQuality "1"]
[TimeControl "5400+30"]

1. d4 {[%emt 0:00:00]} d5 {[%emt 0:02:29]} 2. c4 {[%emt 0:00:00]} e6 {[%emt 0:00:11]} 3. Nc3 {[%emt 0:00:00]} Be7 {[%emt 0:00:15]} 4. Nf3 {[%emt 0:00:00]} Nf6 {[%emt 0:00:06]} 5. Bg5 {[%emt 0:00:00]} h6 {[%emt 0:00:13]} 6. Bh4 {[%emt 0:00:01]} O-O {[%emt 0:01:58]} 7. e3 {[%emt 0:01:09]} Ne4 {[%emt 0:00:11]} 8. Bxe7 {[%emt 0:03:19]} Qxe7 {[%emt 0:00:46]} 9. Qc2 {[%emt 0:00:50]} Nxc3 {[%emt 0:00:44]} 10. Qxc3 {[%emt 0:00:14]} dxc4 {[%emt 0:01:49]} 11. Bxc4 {[%emt 0:05:41]} b6 {[%emt 0:00:23]} 12. O-O {[%emt 0:00:49]} Bb7 {[%emt 0:00:52]} 13. Be2 {[%emt 0:00:10]} c5 {[%emt 0:04:53]} 14. dxc5 {[%emt 0:02:32]} Rc8 {[%emt 0:03:15]} 15. b4 {[%emt 0:01:14]} bxc5 {[%emt 0:04:00]} 16. b5 {[%emt 0:06:18]} Nd7 {[%emt 0:02:35]} 17. a4 {[%emt 0:02:47]} Nf6 {[%emt 0:06:29]} 18. a5 {[%emt 0:10:13]} Ne4 {[%emt 0:08:29]} 19. Qa3 {[%emt 0:06:17]} Qf6 {[%emt 0:07:48]} 20. Rac1 {[%emt 0:13:32]} Rd8 {[%emt 0:12:28]} 21. Rc2 {[%emt 0:10:17]} Rac8 {[%emt 0:15:54]} 22. Rfc1 {[%emt 0:08:10]} Rc7 {[%emt 0:14:40]} 23. Qb2 {[%emt 0:02:43]} Rcd7 {[%emt 0:02:18]} 24. Qxf6 {[%emt 0:00:45]} gxf6 {[%emt 0:01:57]} 25. Ne1 {[%emt 0:02:31]} Nd2 {[%emt 0:02:10]} 26. Rb2 {[%emt 0:03:13]} c4 {[%emt 0:03:14]} 27. a6 {[%emt 0:06:20]} Ba8 {[%emt 0:00:46]} 28. f3 {[%emt 0:01:03]} Rc7 {[%emt 0:01:21]} 29. Rbc2 {[%emt 0:01:29]} Nb3 {[%emt 0:01:30]} 30. Rb1 {[%emt 0:00:57]} Nd2 {[%emt 0:00:29]} 31. Rbc1 {[%emt 0:07:00]} Nb3 {[%emt 0:00:08]} 32. Rxc4 {[%emt 0:03:49]} Nxc1 {[%emt 0:00:09]} 33. Rxc7 {[%emt 0:00:05]} Nxe2+ {[%emt 0:00:05]} 34. Kf1 {[%emt 0:01:16]} Bd5 {[%emt 0:01:48]} 35. Kxe2 {[%emt 0:00:09]} Rb8 {[%emt 0:00:14]} 36. e4 {[%emt 0:00:54]} Bb3 {[%emt 0:00:03]} 37. Rb7 {[%emt 0:00:46]} Rd8 {[%emt 0:00:10]} 38. Ke3 {[%emt 0:00:29]} Bc4 {[%emt 0:00:37]} 39. b6 {[%emt 0:00:44]} Bxa6 {[%emt 0:01:19]} 40. Rxa7 {[%emt 0:00:07]} Bb5 {[%emt 0:00:13]} 41. Ra5 {[%emt 0:00:52]} Bc6 {[%emt 0:00:22]} 42. Rc5 {[%emt 0:00:11]} Rd6 {[%emt 0:00:51]} 43. Nd3 {[%emt 0:01:45]} Bb7 {[%emt 0:00:41]} 44. Rb5 {[%emt 0:00:08]} Kf8 {[%emt 0:00:36]} 45. Nc5 {[%emt 0:00:08]} Bc6 {[%emt 0:00:29]} 46. b7 {[%emt 0:00:09]} Bxb7 {[%emt 0:00:10]} 47. Rxb7 {[%emt 0:00:07]} Kg7 {[%emt 0:00:29]} 48. Nd3 {[%emt 0:00:44]} Ra6 {[%emt 0:00:26]} 49. Kf2 {[%emt 0:00:09]} Ra3 {[%emt 0:00:31]} 50. Nf4 {[%emt 0:00:06]} Ra2+ {[%emt 0:00:15]} 51. Kg3 {[%emt 0:00:05]} Ra6 {[%emt 0:00:11]} 52. Rb8 {[%emt 0:00:30]} Ra5 {[%emt 0:00:24]} 53. Kh4 {[%emt 0:00:07]} f5 {[%emt 0:00:50]} 54. Nh5+ {[%emt 0:00:34]} Kh7 {[%emt 0:00:27]} 55. e5 {[%emt 0:02:08]} Rxe5 {[%emt 0:00:35]} 56. Rf8 {[%emt 0:00:06]} Re2 {[%emt 0:00:49]} 57. Rxf7+ {[%emt 0:00:08]} Kg8 {[%emt 0:00:11]} 58. Rg7+ {[%emt 0:00:05]} Kf8 {[%emt 0:00:41]} 59. Kg3 {[%emt 0:01:09]} e5 {[%emt 0:00:49]} 60. Rg6 {[%emt 0:00:10]} e4 {[%emt 0:00:40]} 61. Rf6+ {[%emt 0:00:08]} Kg8 {[%emt 0:00:06]} 62. Rxf5 {[%emt 0:00:05]} exf3 {[%emt 0:00:34]} 63. Rxf3 {[%emt 0:00:12]} Ra2 {[%emt 0:00:21]} 64. Rb3 {[%emt 0:01:18]} Kh8 {[%emt 0:00:25]} 65. Rb7 {[%emt 0:00:18]} Ra6 {[%emt 0:00:40]} 66. Kf4 {[%emt 0:00:16]} 1-0

[Event "25th Abu Dhabi Master 2018"]
[Site "Abu Dhabi"]
[Date "2018.08.08"]
[Round "2"]
[White "Shailesh, Dravid"]
[Black "Sarvesh Kumar, A."]
[Result "1-0"]
[ECO "C92"]
[WhiteElo "2290"]
[BlackElo "2145"]
[Annotator "NA"]
[PlyCount "86"]
[EventDate "2018.08.05"]
[EventType "swiss"]
[EventCountry "UAE"]
[SourceTitle "playchess.com"]
[Source "ChessBase"]
[SourceQuality "1"]
[TimeControl "5400+30"]

1. e4 e5 2. Nf3 Nc6 3. Bb5 a6 4. Ba4 Nf6 5. O-O Be7 6. Re1 b5 7. Bb3 d6 8. c3 O-O 9. h3 Re8 10. d4 Bb7 11. Nbd2 Bf8 12. a3 h6 13. Bc2 Nb8 14. b3 Nbd7 15. a4 g6 16. Bd3 c6 17. Qc2 Qb6 18. Bb2 Nh5 19. c4 Nf4 20. Bf1 Bg7 21. a5 Qd8 22. g3 Ne6 23. d5 cxd5 24. exd5 Nc7 25. Ne4 Nf6 26. Nc3 Rc8 27. Qd2 bxc4 28. bxc4 Ne6 29. dxe6 Bxf3 30. exf7+ Kxf7 31. Nd5 Rc5 32. Nb6 Qc7 33. Ba3 Rc6 34. c5 d5 35. Bxa6 Rd8 36. Bb5 Re6 37. c6 e4 38. Rac1 Re5 39. Qf4 Kg8 40. Qxe5 Qxe5 41. c7 Qh5 42. cxd8=Q+ Kh7 43. Bf1 Bg4 1-0

[Event "25th Abu Dhabi Master 2018"]
[Site "Abu Dhabi"]
[Date "2018.08.08"]
[Round "2"]
[White "Hejazipour, Mitra"]
[Black "Rapport, Jovana"]
[Result "0-1"]
[ECO "E17"]
[WhiteElo "2285"]
[BlackElo "2354"]
[Annotator "NA"]
[PlyCount "124"]
[EventDate "2018.08.05"]
[EventType "swiss"]
[EventCountry "UAE"]
[SourceTitle "playchess.com"]
[Source "ChessBase"]
[SourceQuality "1"]
[TimeControl "5400+30"]

1. d4 {[%emt 0:00:00]} e6 {[%emt 0:00:00]} 2. Nf3 {[%emt 0:00:27]} Nf6 {[%emt 0:00:37]} 3. c4 {[%emt 0:00:14]} b6 {[%emt 0:00:23]} 4. g3 {[%emt 0:04:23]} Bb7 {[%emt 0:00:44]} 5. Bg2 {[%emt 0:00:12]} Be7 {[%emt 0:00:26]} 6. Nc3 {[%emt 0:00:41]} Ne4 {[%emt 0:04:24]} 7. Qc2 {[%emt 0:03:27]} Nxc3 {[%emt 0:06:26]} 8. Qxc3 {[%emt 0:00:02]} a5 {[%emt 0:05:18]} 9. O-O {[%emt 0:01:38]} O-O {[%emt 0:00:08]} 10. Qc2 {[%emt 0:04:56]} d6 {[%emt 0:01:11]} 11. Ng5 {[%emt 0:06:56]} Bxg5 {[%emt 0:00:13]} 12. Bxb7 {[%emt 0:00:37]} Ra7 {[%emt 0:00:04]} 13. Bg2 {[%emt 0:00:47]} c6 {[%emt 0:04:46]} 14. Rd1 {[%emt 0:02:27]} d5 {[%emt 0:04:14]} 15. h4 {[%emt 0:14:33]} Bxc1 {[%emt 0:00:47]} 16. Raxc1 {[%emt 0:00:08]} f5 {[%emt 0:00:09]} 17. e3 {[%emt 0:11:14]} g5 {[%emt 0:05:17]} 18. hxg5 {[%emt 0:00:40]} Qxg5 {[%emt 0:00:07]} 19. Kf1 {[%emt 0:09:59]} h5 {[%emt 0:00:52]} 20. Ke2 {[%emt 0:00:39]} Rh7 {[%emt 0:09:24]} 21. Rh1 {[%emt 0:05:15]} h4 {[%emt 0:01:38]} 22. gxh4 {[%emt 0:00:20]} Rxh4 {[%emt 0:00:25]} 23. Rxh4 {[%emt 0:00:55]} Qxh4 {[%emt 0:00:02]} 24. cxd5 {[%emt 0:01:06]} Qh2 {[%emt 0:08:48]} 25. dxc6 {[%emt 0:07:12]} Qxg2 {[%emt 0:01:32]} 26. c7 {[%emt 0:00:03]} Qg4+ {[%emt 0:04:12]} 27. Kf1 {[%emt 0:05:40]} Rc8 {[%emt 0:19:22]} 28. cxb8=Q {[%emt 0:00:46]} Rxb8 {[%emt 0:00:02]} 29. Qe2 {[%emt 0:04:29]} Qh3+ {[%emt 0:04:23]} 30. Ke1 {[%emt 0:00:10]} Kf7 {[%emt 0:00:00]} 31. Rc7+ {[%emt 0:01:32]} Kf6 {[%emt 0:00:05]} 32. Qb5 {[%emt 0:02:13]} Qh1+ {[%emt 0:01:59]} 33. Ke2 {[%emt 0:00:02]} Qh5+ {[%emt 0:00:19]} 34. Ke1 {[%emt 0:03:06]} Qh1+ {[%emt 0:00:06]} 35. Qf1 {[%emt 0:00:50]} Qh2 {[%emt 0:02:22]} 36. Rc2 {[%emt 0:06:57]} Rg8 {[%emt 0:00:35]} 37. Qe2 {[%emt 0:00:29]} Rg1+ {[%emt 0:02:54]} 38. Kd2 {[%emt 0:00:03]} Qh1 {[%emt 0:01:55]} 39. Kc3 {[%emt 0:02:23]} Ra1 {[%emt 0:02:33]} 40. Qb5 {[%emt 0:01:29]} Rc1 {[%emt 0:07:17]} 41. Qe5+ {[%emt 0:00:22]} Kf7 {[%emt 0:00:09]} 42. Rxc1 {[%emt 0:00:53]} Qxc1+ {[%emt 0:00:04]} 43. Kb3 {[%emt 0:00:08]} a4+ {[%emt 0:01:51]} 44. Ka3 {[%emt 0:00:40]} Qc4 {[%emt 0:00:18]} 45. Qd6 {[%emt 0:00:19]} b5 {[%emt 0:00:44]} 46. Qc5 {[%emt 0:00:27]} Qe2 {[%emt 0:00:13]} 47. Qc3 {[%emt 0:00:32]} Qxf2 {[%emt 0:00:26]} 48. Kb4 {[%emt 0:00:13]} Qe2 {[%emt 0:00:06]} 49. Ka5 {[%emt 0:00:29]} Kg6 {[%emt 0:00:34]} 50. a3 {[%emt 0:00:59]} Kg5 {[%emt 0:00:19]} 51. Kb6 {[%emt 0:00:45]} Kg4 {[%emt 0:00:11]} 52. Qb4 {[%emt 0:00:39]} Qxe3 {[%emt 0:00:26]} 53. Kxb5 {[%emt 0:00:08]} Qb3 {[%emt 0:00:40]} 54. Ka5 {[%emt 0:00:51]} f4 {[%emt 0:00:46]} 55. Qf8 {[%emt 0:00:30]} f3 {[%emt 0:00:04]} 56. Qg7+ {[%emt 0:00:16]} Kh3 {[%emt 0:00:23]} 57. Qh6+ {[%emt 0:00:15]} Kg2 {[%emt 0:00:12]} 58. Qg5+ {[%emt 0:00:04]} Kf1 {[%emt 0:00:13]} 59. Qc1+ {[%emt 0:01:24]} Ke2 {[%emt 0:00:02]} 60. Qf4 {[%emt 0:00:31]} f2 {[%emt 0:01:20]} 61. Qg4+ {[%emt 0:00:13]} Qf3 {[%emt 0:00:59]} 62. Qxe6+ {[%emt 0:00:05]} Kd1 {[%emt 0:00:02]} 0-1

[Event "25th Abu Dhabi Master 2018"]
[Site "Abu Dhabi"]
[Date "2018.08.08"]
[Round "2"]
[White "Mansour, Sameer"]
[Black "Srihari, LR."]
[Result "0-1"]
[ECO "B12"]
[WhiteElo "2275"]
[BlackElo "2135"]
[Annotator "NA"]
[PlyCount "122"]
[EventDate "2018.08.05"]
[EventType "swiss"]
[EventCountry "UAE"]
[SourceTitle "playchess.com"]
[Source "ChessBase"]
[SourceQuality "1"]
[TimeControl "5400+30"]

1. e4 {[%emt 0:00:31]} c6 {[%emt 0:01:39]} 2. d4 {[%emt 0:00:17]} d5 {[%emt 0:00:06]} 3. e5 {[%emt 0:00:23]} Bf5 {[%emt 0:00:18]} 4. Nc3 {[%emt 0:00:08]} e6 {[%emt 0:00:58]} 5. g4 {[%emt 0:00:42]} Bg6 {[%emt 0:00:06]} 6. Nge2 {[%emt 0:03:36]} f6 {[%emt 0:03:02]} 7. Nf4 {[%emt 0:03:11]} fxe5 {[%emt 0:04:20]} 8. Nxg6 {[%emt 0:01:07]} hxg6 {[%emt 0:03:02]} 9. dxe5 {[%emt 0:00:08]} Nd7 {[%emt 0:00:14]} 10. Bf4 {[%emt 0:03:38]} Bc5 {[%emt 0:14:06]} 11. Bd3 {[%emt 0:02:10]} Ne7 {[%emt 0:02:46]} 12. Qe2 {[%emt 0:06:42]} Qc7 {[%emt 0:11:50]} 13. Bg3 {[%emt 0:06:34]} Bd4 {[%emt 0:12:50]} 14. f4 {[%emt 0:05:24]} O-O-O {[%emt 0:06:41]} 15. Nd1 {[%emt 0:17:17]} g5 {[%emt 0:02:54]} 16. c3 {[%emt 0:04:48]} gxf4 {[%emt 0:00:24]} 17. cxd4 {[%emt 0:00:02]} fxg3 {[%emt 0:00:02]} 18. Nc3 {[%emt 0:00:01]} Rdf8 {[%emt 0:01:23]} 19. O-O-O {[%emt 0:01:55]} Qb6 {[%emt 0:03:06]} 20. Bc2 {[%emt 0:03:05]} a6 {[%emt 0:08:40]} 21. Qd2 {[%emt 0:13:55]} Rxh2 {[%emt 0:04:54]} 22. Rxh2 {[%emt 0:01:09]} gxh2 {[%emt 0:00:05]} 23. Qxh2 {[%emt 0:00:27]} c5 {[%emt 0:00:29]} 24. Na4 {[%emt 0:06:30]} Qc7 {[%emt 0:01:40]} 25. Qh4 {[%emt 0:03:26]} Nc6 {[%emt 0:01:00]} 26. dxc5 {[%emt 0:00:55]} Qxe5 {[%emt 0:01:28]} 27. Kb1 {[%emt 0:03:27]} Nd4 {[%emt 0:05:33]} 28. Qe7 {[%emt 0:03:08]} Rh8 {[%emt 0:02:38]} 29. Nb6+ {[%emt 0:04:21]} Nxb6 {[%emt 0:00:32]} 30. cxb6 {[%emt 0:00:02]} Nxc2 {[%emt 0:00:54]} 31. Qc5+ {[%emt 0:04:12]} Kd8 {[%emt 0:04:31]} 32. Qxc2 {[%emt 0:00:48]} Rh2 {[%emt 0:00:15]} 33. Qb3 {[%emt 0:01:47]} Qe4+ {[%emt 0:00:31]} 34. Ka1 {[%emt 0:00:36]} Qc2 {[%emt 0:02:27]} 35. Rf1 {[%emt 0:00:02]} Rf2 {[%emt 0:01:02]} 36. Rh1 {[%emt 0:00:00]} Qxb3 {[%emt 0:00:09]} 37. axb3 {[%emt 0:00:02]} Rf6 {[%emt 0:00:39]} 38. Rc1 {[%emt 0:00:51]} e5 {[%emt 0:01:06]} 39. Rc7 {[%emt 0:00:02]} Rxb6 {[%emt 0:00:04]} 40. Rxg7 {[%emt 0:00:02]} Rxb3 {[%emt 0:00:06]} 41. Kb1 {[%emt 0:00:08]} Kc8 {[%emt 0:00:09]} 42. Kc2 {[%emt 0:00:09]} Rg3 {[%emt 0:00:14]} 43. g5 {[%emt 0:01:00]} e4 {[%emt 0:00:06]} 44. g6 {[%emt 0:00:39]} d4 {[%emt 0:00:35]} 45. Re7 {[%emt 0:00:07]} Rg2+ {[%emt 0:00:51]} 46. Kd1 {[%emt 0:00:37]} Rg1+ {[%emt 0:00:58]} 47. Kd2 {[%emt 0:01:18]} Rg2+ {[%emt 0:00:09]} 48. Kd1 {[%emt 0:00:03]} Rxg6 {[%emt 0:00:12]} 49. Rxe4 {[%emt 0:00:01]} Rd6 {[%emt 0:00:11]} 50. Kd2 {[%emt 0:00:13]} Kc7 {[%emt 0:00:09]} 51. Kd3 {[%emt 0:00:41]} Kc6 {[%emt 0:00:20]} 52. Re5 {[%emt 0:01:53]} Rd5 {[%emt 0:00:30]} 53. Re7 {[%emt 0:00:22]} b6 {[%emt 0:00:47]} 54. Re1 Kb5 {[%emt 0:00:27]} 55. Rc1 {[%emt 0:02:16]} a5 {[%emt 0:01:18]} 56. b3 {[%emt 0:00:37]} Kb4 {[%emt 0:00:14]} 57. Rb1 {[%emt 0:00:31]} Rd6 {[%emt 0:00:48]} 58. Rb2 {[%emt 0:00:32]} Ka3 {[%emt 0:00:11]} 59. Rb1 {[%emt 0:00:24]} Ka2 {[%emt 0:00:17]} 60. Rh1 {[%emt 0:00:08]} Kxb3 {[%emt 0:00:07]} 61. Rb1+ {[%emt 0:00:09]} Ka3 {[%emt 0:00:56]} 0-1

[Event "25th Abu Dhabi Master 2018"]
[Site "Abu Dhabi"]
[Date "2018.08.08"]
[Round "2"]
[White "Mohota, Nisha"]
[Black "Mohamed, Faisal"]
[Result "1/2-1/2"]
[ECO "D11"]
[WhiteElo "2268"]
[BlackElo "2134"]
[Annotator "NA"]
[PlyCount "141"]
[EventDate "2018.08.05"]
[EventType "swiss"]
[EventCountry "UAE"]
[SourceTitle "playchess.com"]
[Source "ChessBase"]
[SourceQuality "1"]
[TimeControl "5400+30"]

1. d4 d5 2. c4 c6 3. Nf3 Nf6 4. e3 e6 5. b3 Bb4+ 6. Nbd2 Nbd7 7. Bd3 O-O 8. O-O Re8 9. Bb2 Qa5 10. a3 Bxd2 11. Qxd2 Qxd2 12. Nxd2 e5 13. cxd5 Nxd5 14. Nc4 exd4 15. Bxd4 N7f6 16. Nd6 Rd8 17. Nxc8 Raxc8 18. Bf5 Ra8 19. Rfd1 Ne7 20. Bc2 Ned5 21. e4 Nf4 22. Be5 Ne6 23. b4 Rxd1+ 24. Rxd1 Rd8 25. Rxd8+ Nxd8 26. Bd4 a6 27. h3 Ne6 28. Be3 g5 29. g3 g4 30. hxg4 Nxg4 31. Ba7 Ne5 32. f4 Nd4 33. Ba4 Ne2+ 34. Kf2 Nc3 35. Bb3 Nd7 36. e5 Kf8 37. Be3 Ke7 38. Kf3 b6 39. Bc1 c5 40. Bb2 Nb5 41. Ke4 Nc7 42. f5 b5 43. Bd1 cxb4 44. axb4 Nb6 45. Bd4 Nc4 46. Bc5+ Kd7 47. Bh5 Nd2+ 48. Kd3 Nc4 49. Kd4 Nd2 50. Bd6 Ne8 51. Bb8 Ng7 52. Bg4 Nc4 53. Ba7 h5 54. Bh3 Nd2 55. Kd5 Nc4 56. Bc5 Nd2 57. e6+ fxe6+ 58. fxe6+ Kd8 59. Kc6 Ne4 60. e7+ Ke8 61. Bd4 Kxe7 62. Bxg7 Nxg3 63. Kb6 Ne2 64. Kxa6 Nf4 65. Bf5 Kd6 66. Kxb5 h4 67. Bh6 Nd5 68. Bg7 Nf4 69. Kc4 h3 70. Bh6 Ke5 71. Bxf4+ 1/2-1/2

[Event "25th Abu Dhabi Master 2018"]
[Site "Abu Dhabi"]
[Date "2018.08.08"]
[Round "2"]
[White "Aaryan, Varshney"]
[Black "Ali, Nehad"]
[Result "1-0"]
[ECO "D46"]
[WhiteElo "2261"]
[BlackElo "2113"]
[Annotator "NA"]
[PlyCount "55"]
[EventDate "2018.08.05"]
[EventType "swiss"]
[EventCountry "UAE"]
[SourceTitle "playchess.com"]
[Source "ChessBase"]
[SourceQuality "1"]
[TimeControl "5400+30"]

1. d4 d5 2. c4 e6 3. Nc3 c6 4. e3 Nf6 5. Nf3 Nbd7 6. Bd3 a6 7. a4 Bb4 8. O-O O-O 9. Bd2 Re8 10. Nxd5 Nxd5 11. cxd5 Bxd2 12. dxe6 Ba5 13. exd7 Bxd7 14. Ne5 Be6 15. f4 Bb6 16. Qh5 g6 17. Qh6 f5 18. Rf3 Qf6 19. h4 Re7 20. h5 Qg7 21. Qg5 gxh5 22. Qh4 Kf8 23. Rg3 Qh6 24. Rg5 Qf6 25. Rg8+ Kxg8 26. Qxf6 Rae8 27. Bxf5 Bd5 28. Bd7 1-0

[Event "25th Abu Dhabi Master 2018"]
[Site "Abu Dhabi"]
[Date "2018.08.08"]
[Round "2"]
[White "Alinasab, Mobina"]
[Black "Mayank, Pal"]
[Result "1-0"]
[ECO "C42"]
[WhiteElo "2259"]
[BlackElo "2100"]
[Annotator "NA"]
[PlyCount "117"]
[EventDate "2018.08.05"]
[EventType "swiss"]
[EventCountry "UAE"]
[SourceTitle "playchess.com"]
[Source "ChessBase"]
[SourceQuality "1"]
[TimeControl "5400+30"]

1. e4 {[%emt 0:00:00]} e5 {[%emt 0:00:16]} 2. Nf3 {[%emt 0:00:03]} Nf6 {[%emt 0:00:24]} 3. Nxe5 {[%emt 0:00:45]} d6 {[%emt 0:00:21]} 4. Nf3 {[%emt 0:00:06]} Nxe4 {[%emt 0:00:09]} 5. d3 {[%emt 0:03:12]} Nf6 {[%emt 0:00:33]} 6. d4 {[%emt 0:00:34]} d5 {[%emt 0:01:11]} 7. Bd3 {[%emt 0:00:09]} Bd6 {[%emt 0:04:53]} 8. O-O {[%emt 0:00:05]} O-O {[%emt 0:00:39]} 9. Re1 {[%emt 0:00:08]} Bg4 {[%emt 0:07:20]} 10. Bg5 {[%emt 0:01:23]} Nc6 {[%emt 0:09:27]} 11. c3 {[%emt 0:00:13]} h6 {[%emt 0:01:10]} 12. Bh4 {[%emt 0:02:42]} Bf4 {[%emt 0:04:19]} 13. h3 {[%emt 0:02:17]} Bxf3 {[%emt 0:11:38]} 14. Qxf3 {[%emt 0:00:09]} Qd6 {[%emt 0:02:11]} 15. Bxf6 Qxf6 {[%emt 0:00:11]} 16. Qxd5 {[%emt 0:06:01]} Rfe8 {[%emt 0:06:33]} 17. Na3 {[%emt 0:00:44]} g6 {[%emt 0:02:05]} 18. Qf3 {[%emt 0:00:38]} Kg7 {[%emt 0:05:07]} 19. g3 {[%emt 0:02:14]} Bd6 {[%emt 0:00:05]} 20. Qxf6+ {[%emt 0:00:04]} Kxf6 {[%emt 0:00:02]} 21. Nb5 {[%emt 0:00:12]} a6 {[%emt 0:00:45]} 22. Nxd6 {[%emt 0:00:34]} cxd6 {[%emt 0:00:02]} 23. Be4 {[%emt 0:00:20]} Rec8 {[%emt 0:02:42]} 24. Bd5 {[%emt 0:00:40]} Rc7 {[%emt 0:04:02]} 25. Re3 {[%emt 0:00:18]} Rf8 {[%emt 0:02:05]} 26. Rae1 {[%emt 0:10:11]} Ne7 {[%emt 0:03:56]} 27. Bb3 {[%emt 0:00:06]} h5 {[%emt 0:01:44]} 28. Kg2 {[%emt 0:00:19]} b5 {[%emt 0:01:26]} 29. g4 {[%emt 0:01:42]} hxg4 {[%emt 0:04:31]} 30. hxg4 {[%emt 0:00:07]} Nc6 {[%emt 0:00:37]} 31. Bd5 {[%emt 0:00:34]} Na5 {[%emt 0:00:52]} 32. Re8 {[%emt 0:00:19]} Rxe8 {[%emt 0:06:39]} 33. Rxe8 {[%emt 0:00:02]} Nc4 {[%emt 0:02:38]} 34. Bxc4 {[%emt 0:00:06]} bxc4 {[%emt 0:00:31]} 35. Rb8 {[%emt 0:00:09]} Ke6 {[%emt 0:01:00]} 36. Rb6 {[%emt 0:00:39]} Ra7 {[%emt 0:00:11]} 37. Kf3 {[%emt 0:00:21]} Kd5 {[%emt 0:03:16]} 38. Ke3 {[%emt 0:00:47]} Re7+ {[%emt 0:00:54]} 39. Kd2 {[%emt 0:00:08]} Ra7 {[%emt 0:00:51]} 40. b3 {[%emt 0:00:07]} cxb3 {[%emt 0:03:25]} 41. axb3 {[%emt 0:00:06]} Ke6 {[%emt 0:01:36]} 42. c4 {[%emt 0:00:19]} Kd7 {[%emt 0:00:09]} 43. Kc3 {[%emt 0:01:56]} a5 {[%emt 0:02:47]} 44. Kb2 {[%emt 0:01:37]} f5 {[%emt 0:01:03]} 45. gxf5 {[%emt 0:03:08]} gxf5 {[%emt 0:00:02]} 46. Ka3 {[%emt 0:00:08]} Ra8 {[%emt 0:00:38]} 47. Ka4 {[%emt 0:00:37]} Rh8 {[%emt 0:01:23]} 48. c5 {[%emt 0:00:30]} dxc5 {[%emt 0:00:31]} 49. dxc5 {[%emt 0:00:05]} Rh2 {[%emt 0:00:32]} 50. Rd6+ {[%emt 0:00:54]} Kc7 {[%emt 0:00:22]} 51. Kxa5 {[%emt 0:00:31]} Rxf2 {[%emt 0:00:03]} 52. b4 {[%emt 0:00:24]} f4 {[%emt 0:00:56]} 53. Kb5 {[%emt 0:01:15]} f3 {[%emt 0:00:22]} 54. Rf6 {[%emt 0:00:04]} Rf1 {[%emt 0:02:14]} 55. Rf7+ {[%emt 0:00:04]} Kd8 {[%emt 0:00:07]} 56. c6 {[%emt 0:00:50]} f2 {[%emt 0:00:07]} 57. c7+ {[%emt 0:00:13]} Ke8 {[%emt 0:00:23]} 58. c8=Q+ {[%emt 0:00:09]} Kxf7 {[%emt 0:00:04]} 59. Qc4+ {[%emt 0:00:03]} 1-0